bitfinex/quotes_SOLUSD_20220208
["timestamp","ask_amount","ask_price","bid_price","bid_amount"]
[1644361589378,13.2272,113.45,113.42,0.3811556]
[1644361589578,4.25988121,113.44,113.4,0.3811556]
[1644361590380,4.50988121,113.44,113.4,0.3811556]
[1644361590578,4.25988121,113.44,113.4,0.3811556]
[1644361591580,3.9381706,113.44,113.4,0.3811556]
[1644361591782,2.71048936,113.44,113.4,13.6064556]
[1644361593903,0.25,113.44,113.4,13.6064556]
[1644361594102,19.25635291,113.46,113.4,13.6064556]
[1644361594313,19.25635291,113.46,113.4,25.5084556]
[1644361594314,0.03135291,113.46,113.4,25.5084556]
[1644361594602,0.03135291,113.47,113.42,13.2212]
[1644361594803,1.24333965,113.49,113.42,13.2212]
[1644361595005,0.03135291,113.47,113.43,0.3811556]
[1644361595201,11.65033965,113.48,113.43,0.3811556]
[1644361595409,4.407,113.47,113.43,0.3811556]
[1644361595804,7.24333965,113.48,113.43,0.3811556]
[1644361596812,13.2238,113.47,113.43,0.3811556]
[1644361597012,17.6308,113.47,113.43,0.3811556]
[1644361597305,23.8808,113.47,113.43,0.3811556]
[1644361597506,17.8808,113.47,113.43,0.3811556]
[1644361599209,23.8808,113.47,113.43,0.3811556]
[1644361599508,17.8808,113.47,113.43,0.3811556]
[1644361600110,23.8808,113.47,113.43,0.3811556]
[1644361600311,17.8808,113.47,113.43,0.3811556]
[1644361600511,17.8808,113.47,113.41,13.6061556]
[1644361600811,17.91215291,113.47,113.41,13.6061556]
[1644361601711,23.91215291,113.47,113.41,13.6061556]
[1644361601914,19.50515291,113.47,113.41,0.3811556]
[1644361602114,21.6129084,113.47,113.41,0.3811556]
[1644361602312,13.229,113.45,113.41,0.3811556]
[1644361602616,4.408,113.44,113.41,0.3811556]
[1644361602915,3.9381706,113.43,113.41,0.3811556]
[1644361603511,3.9381706,113.43,113.37,0.3811556]
[1644361603712,17.19832351,113.43,113.38,13.2284]
[1644361604511,17.19832351,113.43,113.37,0.3811556]
[1644361605714,17.19832351,113.43,113.37,13.6101556]
[1644361606315,17.44832351,113.43,113.37,13.6101556]
[1644361607615,23.44832351,113.43,113.37,13.6101556]
[1644361610323,4.409,113.42,113.37,0.3811556]
[1644361610522,13.2306,113.41,113.37,0.3811556]
[1644361610921,19.2306,113.41,113.37,0.3811556]
[1644361614225,19.4806,113.41,113.37,0.3811556]
[1644361616428,0.03135291,113.42,113.37,13.6104556]
[1644361616626,0.03135291,113.43,113.37,26.7344556]
[1644361616829,1.27469256,113.45,113.37,23.50073692]
[1644361617025,0.03135291,113.43,113.38,4.408]
[1644361617225,1.27469256,113.45,113.38,24.2511]
[1644361617424,0.03135291,113.44,113.38,24.2511]
[1644361617625,0.03135291,113.45,113.38,24.2511]
[1644361617826,4.43935291,113.45,113.37,4.408]
[1644361618025,24.99985291,113.44,113.37,6.0]
[1644361618278,24.99985291,113.44,113.37,10.408]
[1644361618428,24.99985291,113.44,113.37,4.658]
[1644361618626,24.99985291,113.44,113.37,4.408]
[1644361618828,38.22655291,113.44,113.39,13.2261]
[1644361620132,38.22655291,113.44,113.4,0.3811556]
[1644361620334,38.1952,113.44,113.4,0.3811556]
[1644361620832,38.1952,113.44,113.4,13.6071556]
[1644361622536,38.1952,113.44,113.4,0.3811556]
[1644361623335,13.2267,113.44,113.4,0.3811556]
[1644361624335,0.25,113.44,113.4,13.6071556]
[1644361624837,13.50705291,113.45,113.4,13.6071556]
[1644361625037,46.5897,113.46,113.4,13.6071556]
[1644361625239,46.5897,113.46,113.4,22.9231556]
[1644361627360,46.5897,113.46,113.4,27.3311556]
[1644361627559,13.25475291,113.47,113.4,27.3311556]
[1644361628759,14.49809256,113.47,113.4,27.3311556]
[1644361628960,14.71673965,113.47,113.4,22.6731556]
[1644361629158,14.71673965,113.47,113.4,13.6071556]
[1644361629362,14.74809256,113.47,113.4,13.6071556]
[1644361629562,13.50475291,113.47,113.4,13.6071556]
[1644361629764,14.74809256,113.47,113.4,13.6071556]
[1644361630769,14.74809256,113.47,113.4,13.8571556]
[1644361630963,13.50475291,113.47,113.4,13.8571556]
[1644361631763,13.50475291,113.47,113.4,18.2641556]
[1644361631964,14.74809256,113.47,113.4,18.2641556]
[1644361632167,14.71673965,113.47,113.4,13.8571556]
[1644361632373,13.50475291,113.47,113.4,13.8571556]
[1644361632565,14.74809256,113.47,113.4,13.6071556]
[1644361632864,13.50475291,113.47,113.4,13.6071556]
[1644361633064,13.50475291,113.47,113.4,13.8571556]
[1644361633263,13.50475291,113.47,113.4,13.6071556]
[1644361633465,14.74809256,113.47,113.4,13.6071556]
[1644361633864,13.50475291,113.47,113.4,13.6071556]
[1644361637266,13.50475291,113.47,113.4,13.8571556]
[1644361637967,13.50475291,113.47,113.4,18.2641556]
[1644361638468,17.91175291,113.47,113.4,13.6071556]
[1644361638672,23.91175291,113.47,113.4,13.6071556]
[1644361639070,4.407,113.46,113.4,13.6071556]
[1644361639268,13.2258,113.45,113.4,13.6071556]
[1644361640777,13.4758,113.45,113.4,13.6071556]
[1644361643475,13.4758,113.45,113.4,0.3811556]
[1644361644075,13.4758,113.45,113.38,29.2319]
[1644361644076,13.4758,113.45,113.39,0.3811556]
[1644361644274,13.25775291,113.44,113.39,0.3811556]
[1644361644479,13.2264,113.44,113.39,0.3811556]
[1644361644675,13.25775291,113.44,113.39,0.3811556]
[1644361644874,13.2264,113.44,113.39,0.3811556]
[1644361645775,13.2264,113.44,113.4,13.2262]
[1644361647276,13.2264,113.44,113.41,0.3811556]
[1644361647875,13.2264,113.44,113.42,2.12622934]
[1644361648076,13.4764,113.44,113.42,2.12622934]
[1644361648679,3.9381706,113.43,113.41,0.3811556]
[1644361650479,17.1656706,113.43,113.41,0.3811556]
[1644361650679,23.1656706,113.43,113.39,0.3811556]
[1644361651478,17.1656706,113.43,113.39,0.3811556]
[1644361652780,17.1656706,113.43,113.39,13.6084556]
[1644361653680,17.4156706,113.43,113.39,13.6084556]
[1644361656789,4.1881706,113.43,113.39,13.6084556]
[1644361658784,4.1881706,113.43,113.39,13.5628156]
[1644361660991,3.9381706,113.43,113.39,13.5628156]
[1644361661594,3.9381706,113.43,113.39,19.5628156]
[1644361662294,3.9381706,113.43,113.39,13.8128156]
[1644361663695,3.9381706,113.43,113.39,13.5628156]
[1644361664100,0.03135291,113.44,113.39,18.2208156]
[1644361664295,4.43935291,113.45,113.39,18.2208156]
[1644361664496,0.03135291,113.44,113.39,18.2208156]
[1644361664695,4.43935291,113.45,113.39,18.2208156]
[1644361664895,0.03135291,113.45,113.39,18.2208156]
[1644361665095,0.03135291,113.46,113.4,24.1359]
[1644361665295,14.49809256,113.47,113.41,13.2232]
[1644361665496,14.49809256,113.47,113.41,24.4667156]
[1644361665697,14.49809256,113.47,113.41,24.7167156]
[1644361666897,1.27469256,113.47,113.41,24.7167156]
[1644361667121,0.03135291,113.47,113.41,24.7167156]
[1644361668323,14.49799256,113.47,113.41,24.7167156]
[1644361668521,38.48569256,113.47,113.41,24.7167156]
[1644361669123,37.24235291,113.47,113.41,24.7167156]
[1644361672226,37.49235291,113.47,113.41,24.7167156]
[1644361673729,37.49235291,113.47,113.41,13.5587156]
[1644361673928,37.24235291,113.47,113.41,13.5587156]
[1644361674329,2.10775549,113.46,113.41,0.3355156]
[1644361674531,13.2308,113.44,113.41,0.3355156]
[1644361674728,4.408,113.43,113.38,0.3355156]
[1644361674928,27.4856706,113.43,113.38,0.3595156]
[1644361675131,4.408,113.42,113.38,0.3355156]
[1644361675729,10.408,113.42,113.38,0.3355156]
[1644361676730,23.6388,113.42,113.38,0.3355156]
[1644361677833,23.6388,113.42,113.36,0.3355156]
[1644361678033,19.2308,113.42,113.36,0.3595156]
[1644361678835,19.2308,113.42,113.36,0.3355156]
[1644361679035,19.2308,113.42,113.36,0.3595156]
[1644361679235,19.4808,113.42,113.36,0.3595156]
[1644361680038,19.4808,113.42,113.36,0.3355156]
[1644361680236,19.4808,113.42,113.36,0.3595156]
[1644361681042,36.7754,113.43,113.36,0.3595156]
[1644361681241,36.7754,113.43,113.37,0.024]
[1644361681840,36.7754,113.43,113.38,0.3355156]
[1644361682241,36.7754,113.43,113.38,0.3595156]
[1644361684143,13.2279,113.43,113.38,0.3595156]
[1644361684444,0.03138815,113.44,113.39,5.69985589]
[1644361684646,1.24333965,113.47,113.39,5.69985589]
[1644361684647,0.03138815,113.45,113.39,30.57705589]
[1644361684849,0.03138815,113.44,113.4,0.3355156]
[1644361685045,0.03138815,113.45,113.41,4.408]
[1644361685246,0.03138815,113.46,113.41,4.658]
[1644361685445,1.24333965,113.5,113.42,1.29185589]
[1644361685446,0.03138815,113.49,113.42,1.29185589]
[1644361685645,13.25258815,113.49,113.43,4.407]
[1644361685844,13.2212,113.49,113.43,15.93]
[1644361686045,19.2212,113.49,113.43,11.523]
[1644361686847,19.2212,113.49,113.44,13.2204]
[1644361687051,19.4712,113.49,113.44,13.2204]
[1644361688248,19.4712,113.49,113.45,0.3355156]
[1644361688447,6.25,113.49,113.45,0.3355156]
[1644361688746,0.25,113.49,113.45,0.3355156]
[1644361688945,10.656,113.49,113.45,0.3355156]
[1644361689146,10.406,113.49,113.45,0.3355156]
[1644361689546,4.406,113.49,113.45,0.3355156]
[1644361689750,17.6271,113.49,113.45,0.3355156]
[1644361690148,13.2211,113.49,113.45,0.3355156]
[1644361690548,19.4711,113.49,113.45,0.3355156]
[1644361690847,17.6289,113.48,113.45,0.3355156]
[1644361691347,3.9381706,113.47,113.42,13.4724]
[1644361691549,3.9381706,113.47,113.43,0.3355156]
[1644361691751,3.96955875,113.47,113.43,0.3355156]
[1644361691949,23.1619706,113.47,113.43,0.3355156]
[1644361692152,4.407,113.46,113.43,0.3355156]
[1644361692647,3.9381706,113.45,113.43,0.3355156]
[1644361693050,9.9381706,113.45,113.43,0.3355156]
[1644361693274,3.9381706,113.45,113.43,0.3355156]
[1644361693452,2.71048936,113.45,113.44,1.80451873]
[1644361693651,2.71048936,113.45,113.44,12.74451873]
[1644361693851,0.03138815,113.48,113.44,11.26171061]
[1644361694052,13.2243,113.47,113.44,11.26171061]
[1644361694252,3.9381706,113.46,113.44,11.26171061]
[1644361694453,3.9381706,113.46,113.45,0.3355156]
[1644361695255,17.4128706,113.46,113.38,0.024]
[1644361695454,5.65133965,113.45,113.36,0.024]
[1644361695654,36.2599,113.44,113.33,0.024]
[1644361695855,36.29128815,113.44,113.33,0.024]
[1644361696056,43.5346278,113.44,113.33,0.024]
[1644361696255,13.2324,113.43,113.33,13.2555]
[1644361696456,25.9424,113.43,113.34,0.024]
[1644361696657,13.2324,113.43,113.34,9.07]
[1644361696858,13.2324,113.43,113.35,0.024]
[1644361697665,36.80868815,113.44,113.36,13.2279]
[1644361697863,36.80868815,113.44,113.37,0.024]
[1644361698067,47.21668815,113.44,113.37,0.024]
[1644361699164,47.46668815,113.44,113.37,0.024]
[1644361700565,43.05868815,113.44,113.37,0.024]
[1644361700776,43.05868815,113.44,113.37,8.799]
[1644361700976,43.05868815,113.44,113.37,9.049]
[1644361701377,43.0273,113.44,113.37,9.049]
[1644361701581,43.05868815,113.44,113.37,9.049]
[1644361705885,43.05868815,113.44,113.37,22.2759]
[1644361706285,43.0273,113.44,113.37,22.2759]
[1644361707388,42.7773,113.44,113.37,22.2759]
[1644361707586,23.5499,113.44,113.37,22.2759]
[1644361707786,23.58128815,113.44,113.37,22.2759]
[1644361708885,23.58128815,113.44,113.38,17.6339]
[1644361709085,23.58128815,113.44,113.38,13.2259]
[1644361709287,23.58128815,113.44,113.38,13.4759]
[1644361709490,23.58128815,113.44,113.39,1.59633654]
[1644361709687,23.58128815,113.44,113.39,1.84633654]
[1644361709989,23.58128815,113.44,113.39,1.59633654]
[1644361711288,23.58128815,113.44,113.39,1.84633654]
[1644361715295,0.03138815,113.44,113.39,15.07123654]
[1644361715495,0.03138815,113.45,113.39,27.63023654]
[1644361715693,13.95333965,113.49,113.39,33.63023654]
[1644361715694,0.03138815,113.46,113.39,33.63023654]
[1644361715996,0.03138815,113.48,113.39,33.63023654]
[1644361716195,0.03138815,113.46,113.39,57.40603654]
[1644361716393,0.03138815,113.47,113.4,4.408]
[1644361716598,13.25408815,113.48,113.41,13.2222]
[1644361716797,0.03138815,113.47,113.41,13.4722]
[1644361717696,0.03138815,113.47,113.42,1.59633654]
[1644361717896,13.25408815,113.48,113.42,14.81803654]
[1644361718095,0.03138815,113.47,113.42,15.06803654]
[1644361718296,13.25408815,113.48,113.42,15.06803654]
[1644361718499,0.03138815,113.47,113.42,1.84633654]
[1644361718695,13.2242,113.47,113.42,1.84633654]
[1644361718897,0.03138815,113.47,113.42,7.84633654]
[1644361719097,28.37039226,113.51,113.42,7.84633654]
[1644361719098,0.03138815,113.5,113.43,4.407]
[1644361719297,23.7965,113.51,113.43,0.25]
[1644361719298,0.03138815,113.47,113.43,0.25]
[1644361719504,0.03138815,113.5,113.43,6.25]
[1644361719698,0.03138815,113.5,113.43,10.656]
[1644361719898,0.03138815,113.5,113.43,4.656]
[1644361720100,0.03138815,113.5,113.44,13.2192]
[1644361720402,13.25098815,113.51,113.44,13.4692]
[1644361721500,13.50098815,113.51,113.45,14.81523654]
[1644361721699,13.50098815,113.51,113.45,15.06523654]
[1644361722100,13.50098815,113.51,113.45,14.81523654]
[1644361722401,15.60874364,113.51,113.45,1.59633654]
[1644361722603,21.60874364,113.51,113.45,1.59633654]
[1644361722802,43.95028815,113.51,113.45,1.59633654]
[1644361723802,48.35628815,113.51,113.45,1.59633654]
[1644361724002,48.35628815,113.51,113.43,14.81743654]
[1644361724202,0.03138815,113.5,113.43,15.06743654]
[1644361724402,13.25228815,113.5,113.43,19.47343654]
[1644361724604,17.65828815,113.5,113.43,15.06743654]
[1644361725102,23.65828815,113.5,113.43,15.06743654]
[1644361725305,17.65828815,113.5,113.43,15.06743654]
[1644361725661,23.65828815,113.5,113.43,14.81743654]
[1644361725703,17.65828815,113.5,113.43,14.81743654]
[1644361725903,13.25228815,113.5,113.43,14.81743654]
[1644361726903,13.25228815,113.5,113.43,15.06743654]
[1644361728104,13.50228815,113.5,113.43,15.06743654]
[1644361728410,0.28138815,113.5,113.43,15.06743654]
[1644361728806,0.03138815,113.5,113.43,15.06743654]
[1644361729406,0.03138815,113.5,113.43,19.47343654]
[1644361729804,0.03138815,113.5,113.44,4.406]
[1644361730004,37.69978815,113.51,113.45,13.2189]
[1644361730305,0.03138815,113.5,113.45,13.4689]
[1644361730505,24.48068815,113.51,113.45,13.4689]
[1644361731105,0.03138815,113.51,113.45,13.4689]
[1644361731410,0.03138815,113.51,113.45,19.4689]
[1644361731610,0.03138815,113.53,113.46,29.95169492]
[1644361731811,0.03138815,113.51,113.48,13.2133]
[1644361732006,0.03138815,113.53,113.48,13.2133]
[1644361732205,45.3895,113.55,113.48,13.2133]
[1644361732206,0.03138815,113.54,113.48,13.4633]
[1644361732606,24.78408815,113.57,113.48,19.4633]
[1644361732807,0.03138815,113.54,113.48,136.28379492]
[1644361733108,0.03138815,113.56,113.48,48.15379492]
[1644361733311,0.03138815,113.54,113.48,48.15379492]
[1644361733508,0.03138815,113.56,113.48,43.74979492]
[1644361733807,0.03138815,113.59,113.49,4.404]
[1644361734010,0.03138815,113.55,113.52,13.2105]
[1644361734208,0.03138815,113.58,113.53,0.47457497]
[1644361734408,4.43338815,113.59,113.53,0.47457497]
[1644361734608,4.402,113.59,113.53,0.47457497]
[1644361735009,4.402,113.59,113.54,1.59633654]
[1644361735212,4.652,113.59,113.54,1.59633654]
[1644361735815,17.8631,113.59,113.54,1.59633654]
[1644361736111,23.8631,113.59,113.54,1.59633654]
[1644361738010,23.8631,113.59,113.53,1.59633654]
[1644361738210,19.4611,113.59,113.53,1.59633654]
[1644361739110,13.213,113.57,113.53,1.59633654]
[1644361739314,0.03138815,113.58,113.53,1.59633654]
[1644361739612,0.03138815,113.59,113.53,13.74133654]
[1644361739809,52.32388815,113.6,113.53,13.74133654]
[1644361740010,52.32388815,113.6,113.53,27.20113654]
[1644361740411,6.03138815,113.6,113.53,27.20113654]
[1644361740612,0.03138815,113.6,113.53,33.20113654]
[1644361740812,6.03138815,113.6,113.53,27.20113654]
[1644361741214,0.03138815,113.6,113.53,27.20113654]
[1644361741415,0.03138815,113.6,113.53,45.91113654]
[1644361741614,0.03138815,113.6,113.54,1.28649492]
[1644361741816,0.47361675,113.61,113.55,13.2036]
[1644361742032,0.47361675,113.61,113.55,27.50993654]
[1644361742212,0.47361675,113.61,113.55,27.75993654]
[1644361745217,0.47361675,113.61,113.55,27.50993654]
[1644361748520,13.68171675,113.61,113.55,27.50993654]
[1644361748725,13.68171675,113.61,113.55,1.59633654]
[1644361748922,19.68171675,113.61,113.55,1.59633654]
[1644361749549,4.402,113.6,113.48,4.402]
[1644361749742,13.24668815,113.59,113.47,4.402]
[1644361749944,28.75058815,113.58,113.49,13.2143]
[1644361750146,34.7192,113.58,113.47,4.402]
[1644361750345,0.03138815,113.57,113.46,12.71]
[1644361750547,4.404,113.56,113.46,12.71]
[1644361750745,13.2161,113.54,113.46,12.96]
[1644361751145,0.03138815,113.53,113.46,12.96]
[1644361751844,0.03138815,113.53,113.47,13.2156]
[1644361752050,13.24748815,113.54,113.47,13.2156]
[1644361752245,0.03138815,113.53,113.47,13.2156]
[1644361752443,13.49748815,113.54,113.47,13.2156]
[1644361752643,0.03138815,113.53,113.47,13.2156]
[1644361752844,13.4661,113.54,113.47,13.2156]
[1644361752845,13.49748815,113.54,113.47,13.2156]
[1644361753044,0.03138815,113.53,113.47,13.2156]
[1644361753244,13.49748815,113.54,113.47,13.2156]
[1644361753444,0.03138815,113.53,113.47,13.2156]
[1644361753644,13.49748815,113.54,113.47,13.2156]
[1644361754445,13.49748815,113.54,113.46,25.9275]
[1644361754648,0.03138815,113.53,113.46,12.96]
[1644361755048,0.03138815,113.53,113.47,4.405]
[1644361755247,13.49748815,113.54,113.47,4.655]
[1644361755849,13.49748815,113.54,113.47,17.8715]
[1644361756249,0.28138815,113.54,113.47,17.8715]
[1644361756647,0.03138815,113.54,113.47,17.8715]
[1644361756948,0.03138815,113.54,113.47,19.15799492]
[1644361757449,0.03138815,113.54,113.47,14.75299492]
[1644361758149,0.03138815,113.54,113.47,20.75299492]
[1644361758649,0.03138815,113.54,113.47,154.39168868]
[1644361758948,0.03138815,113.56,113.47,155.61667075]
[1644361759249,0.03138815,113.54,113.48,110.8018]
[1644361759449,0.03138815,113.59,113.49,30.3228]
[1644361759648,0.03138815,113.54,113.49,125.73929492]
[1644361759853,0.03138815,113.6,113.49,125.98929492]
[1644361760050,0.03138815,113.6,113.5,1.28649492]
[1644361760252,0.03138815,113.6,113.51,12.71]
[1644361760453,0.03138815,113.6,113.51,17.112]
[1644361760653,0.03138815,113.6,113.51,24.64849492]
[1644361761853,0.03138815,113.6,113.53,13.2083]
[1644361762252,0.03138815,113.6,113.53,13.4583]
[1644361765857,0.03138815,113.6,113.55,13.2072]
[1644361766057,19.68151675,113.61,113.55,13.2072]
[1644361766258,19.68151675,113.61,113.55,13.4572]
[1644361766658,13.68151675,113.61,113.55,13.4572]
[1644361767059,13.93151675,113.61,113.55,13.4572]
[1644361767660,13.9001286,113.61,113.55,13.4572]
[1644361767860,13.93156453,113.61,113.55,13.4572]
[1644361768057,19.93156453,113.61,113.55,13.4572]
[1644361775167,19.93156453,113.61,113.55,13.2072]
[1644361777769,19.68156453,113.61,113.55,13.2072]
[1644361778571,13.68156453,113.61,113.55,13.2072]
[1644361778771,19.68156453,113.61,113.55,13.2072]
[1644361778973,13.68156453,113.61,113.55,13.2072]
[1644361779173,13.68156453,113.61,113.55,13.4572]
[1644361779373,19.68156453,113.61,113.55,13.4572]
[1644361781474,19.93156453,113.61,113.55,13.4572]
[1644361781674,19.93156453,113.61,113.55,13.2072]
[1644361786676,21.17490418,113.61,113.55,13.2072]
[1644361787879,20.92490418,113.61,113.55,13.4572]
[1644361788280,20.92490418,113.61,113.55,13.2072]
[1644361789078,20.92490418,113.61,113.55,13.4572]
[1644361789278,6.47366453,113.61,113.55,13.4572]
[1644361789482,7.71700418,113.61,113.55,13.4572]
[1644361790078,6.47366453,113.61,113.55,13.4572]
[1644361790578,7.71700418,113.61,113.55,13.4572]
[1644361790778,1.71700418,113.61,113.55,13.4572]
[1644361791179,7.71700418,113.61,113.55,13.4572]
[1644361791381,7.96700418,113.61,113.55,13.4572]
[1644361791982,1.96700418,113.61,113.55,13.4572]
[1644361792578,15.17440418,113.61,113.55,13.4572]
[1644361793580,21.17440418,113.61,113.55,13.4572]
[1644361794381,21.17440418,113.61,113.55,13.2072]
[1644361794979,7.96700418,113.61,113.55,13.2072]
[1644361795782,7.96700418,113.61,113.55,13.4572]
[1644361796887,7.96700418,113.61,113.55,13.2072]
[1644361797285,21.17480418,113.61,113.55,13.2072]
[1644361799110,21.17480418,113.61,113.55,13.4572]
[1644361799310,21.17480418,113.61,113.55,13.2072]
[1644361799710,21.17480418,113.61,113.55,13.4572]
[1644361800610,21.17480418,113.61,113.55,13.2072]
[1644361805619,13.2145,113.56,113.49,5.62698207]
[1644361805820,24.2145,113.56,113.49,12.71]
[1644361806018,30.2145,113.56,113.47,1.22498207]
[1644361806219,32.32225549,113.56,113.47,1.22498207]
[1644361806422,22.8616,113.55,113.47,1.22498207]
[1644361806627,28.8616,113.55,113.47,13.2165]
[1644361807025,28.8616,113.55,113.47,13.4665]
[1644361807727,13.2164,113.53,113.47,13.4665]
[1644361808227,28.8616,113.55,113.47,14.76361979]
[1644361808428,28.8616,113.55,113.47,28.57810802]
[1644361808623,22.8616,113.55,113.47,32.98210802]
[1644361808824,22.8616,113.55,113.47,28.57810802]
[1644361809824,13.2155,113.54,113.48,4.404]
[1644361810025,13.2155,113.54,113.48,17.6185]
[1644361810225,13.2155,113.54,113.48,17.8685]
[1644361810424,13.2155,113.54,113.48,17.6185]
[1644361810626,13.2155,113.54,113.48,17.8685]
[1644361811025,13.2155,113.54,113.48,13.4645]
[1644361811425,13.2155,113.54,113.48,13.2145]
[1644361814330,19.2155,113.54,113.48,13.2145]
[1644361814627,13.2155,113.54,113.48,13.2145]
[1644361815028,13.2155,113.54,113.48,13.4645]
[1644361815230,36.076,113.55,113.48,14.76161979]
[1644361815427,42.076,113.55,113.49,4.404]
[1644361815628,42.076,113.55,113.49,13.2141]
[1644361816228,42.326,113.55,113.49,13.2141]
[1644361817533,42.326,113.55,113.48,17.6194]
[1644361817734,42.326,113.55,113.48,4.404]
[1644361817932,42.326,113.55,113.47,29.0252]
[1644361818736,42.326,113.55,113.47,42.4918]
[1644361820237,42.326,113.55,113.47,38.0878]
[1644361824237,42.326,113.55,113.47,42.4918]
[1644361827241,42.076,113.55,113.47,42.4918]
[1644361827441,19.2144,113.55,113.47,43.78891979]
[1644361827643,19.2144,113.55,113.47,49.78891979]
[1644361827943,13.2144,113.55,113.47,49.78891979]
[1644361828143,13.2144,113.55,113.47,43.78891979]
[1644361828543,13.2144,113.55,113.47,49.78891979]
[1644361828743,13.2144,113.55,113.47,43.78891979]
[1644361828944,13.2144,113.55,113.47,49.78891979]
[1644361829143,13.2144,113.55,113.47,43.78891979]
[1644361829343,13.2144,113.55,113.47,49.78891979]
[1644361830944,13.4644,113.55,113.47,45.38491979]
[1644361831546,13.2127,113.56,113.47,45.38491979]
[1644361831748,23.6288,113.57,113.48,17.114]
[1644361831947,23.6288,113.57,113.5,13.2115]
[1644361832147,23.6288,113.57,113.51,4.402]
[1644361832545,23.6288,113.57,113.5,7.54711979]
[1644361832746,23.6288,113.57,113.5,0.25]
[1644361832947,23.6288,113.57,113.5,6.25]
[1644361833147,23.6288,113.57,113.52,13.2104]
[1644361833351,23.8788,113.57,113.52,13.2104]
[1644361834750,37.0904,113.57,113.52,13.2104]
[1644361835151,43.0904,113.57,113.52,13.2104]
[1644361835351,37.0904,113.57,113.52,13.2104]
[1644361836152,37.0904,113.57,113.52,13.4604]
[1644361840774,37.0904,113.57,113.49,40.1095]
[1644361840973,43.0904,113.57,113.51,13.2131]
[1644361841180,47.4924,113.57,113.51,13.2131]
[1644361842274,47.4924,113.57,113.5,13.2142]
[1644361843474,43.0904,113.57,113.5,13.2142]
[1644361844279,43.0904,113.57,113.49,13.2152]
[1644361844479,13.2165,113.54,113.47,28.0769]
[1644361845378,13.2165,113.54,113.47,41.2944]
[1644361845579,19.2165,113.54,113.47,36.8924]
[1644361846075,19.2165,113.54,113.47,13.2175]
[1644361846278,19.2165,113.54,113.45,43.06448207]
[1644361846478,22.8857,113.53,113.46,13.2188]
[1644361846679,13.2195,113.51,113.46,13.2188]
[1644361847783,19.2195,113.51,113.46,13.2188]
[1644361847987,13.2195,113.51,113.46,13.2188]
[1644361848187,13.4695,113.51,113.46,13.2188]
[1644361848587,13.4695,113.51,113.45,13.4699]
[1644361850088,0.25,113.51,113.45,13.4699]
[1644361850289,13.2184,113.52,113.46,4.406]
[1644361850489,19.2184,113.52,113.46,17.6249]
[1644361853696,19.2184,113.52,113.46,4.406]
[1644361853898,19.4684,113.52,113.46,4.406]
[1644361854095,13.4684,113.52,113.45,13.4699]
[1644361854295,13.4684,113.52,113.45,13.2199]
[1644361854496,19.4684,113.52,113.43,38.54608207]
[1644361854695,19.4684,113.52,113.43,24.8611]
[1644361854696,24.4391,113.51,113.43,24.8611]
[1644361854899,13.2221,113.5,113.43,44.0832]
[1644361855094,19.2221,113.5,113.43,42.4892]
[1644361856398,6.0,113.5,113.43,42.4892]
[1644361856595,30.4391,113.51,113.43,42.4892]
[1644361856795,24.4391,113.51,113.43,42.4892]
[1644361856995,24.4391,113.51,113.43,48.4892]
[1644361857395,24.4391,113.51,113.43,44.0832]
[1644361857694,24.4391,113.51,113.44,17.6267]
[1644361857695,24.6891,113.51,113.44,17.6267]
[1644361858094,24.6891,113.51,113.44,17.8767]
[1644361858295,24.6891,113.51,113.44,23.8767]
[1644361858795,30.6891,113.51,113.44,19.4707]
[1644361860596,30.6891,113.51,113.44,13.4707]
[1644361861099,30.6891,113.51,113.44,13.2207]
[1644361862100,30.6891,113.51,113.44,20.51766578]
[1644361862299,30.6891,113.51,113.44,24.92366578]
[1644361862500,30.6891,113.51,113.44,18.92366578]
[1644361862900,30.6891,113.51,113.44,17.6267]
[1644361863100,30.6891,113.51,113.44,18.92366578]
[1644361863301,30.6891,113.51,113.44,19.17366578]
[1644361863706,30.6891,113.51,113.44,17.6267]
[1644361863900,30.6891,113.51,113.44,24.92366578]
[1644361864303,30.6891,113.51,113.44,25.17366578]
[1644361864702,30.6891,113.51,113.45,0.024]
[1644361865003,24.6891,113.51,113.46,13.2187]
[1644361865201,24.6891,113.51,113.46,14.51566578]
[1644361865402,24.4391,113.51,113.46,14.51566578]
[1644361865801,24.4391,113.51,113.47,1.29696578]